Cogmind - Beta 11 X6 @@@ ROGUE MODE // 2021.07.24 @ 09:31:17 Player: AlmondRoll Result: Self-destructed Performance ------------- Evolutions (7) 3500 Regions Visited (19) 3800 Robots Destroyed (272) 1360 Value Destroyed (8109) 8109 Prototype IDs (90) 1800 Alien Tech Used (6) 1200 Bonus (6571) 6571 TOTAL SCORE: 26340 Bonus ------- High Alert Combat Kills 593 Follower Combat Kills 167 Aligned with FarCom 300 Met Zhirov 300 Found Hidden Lab 3000 Used Core Reset Matrix 3000 Scanned by Researcher 500 Pursued by Intercept 500 Friendly Fire -1789 Cogmind --------- Core Integrity 388/1300 Matter 300/300 Energy 100/100 System Corruption 0% Temperature Cool (0) Movement Core (400) Ox7 Location -3/Quarantine Parts ------- > --- POWER (2) -------- (None) > --- PROPULSION (6) --- Combat Antigrav System Antigrav Array > --- UTILITY (12) ----- Medium Storage Unit Advanced Signal Interpreter Improved Terrain Scanner Advanced Armor Integrity Analyzer Microactuators Improved Hacking Suite Advanced Hacking Suite Experimental Hacking Suite Improved System Shield Quantum Router > --- WEAPON (3) ------- Core Cannon > --- INVENTORY (10) --- High-capacity Storage Unit Phase Redirector Warp Cannon Warp Cannon Heavy Proton Missile Launcher Plasma Lance Plasma Lance Peak State ------------ > --- POWER ------------ Light Particle Reactor Graviton Reactor > --- PROPULSION ------- Cooled Gravmag System Cooled Gravmag System Cooled Gravmag System Combat Antigrav System Combat Antigrav System Combat Antigrav System > --- UTILITY ---------- Experimental Power Amplifier Advanced Signal Interpreter Advanced Armor Integrity Analyzer Hardened Heavy Armor Plating Heavy Reflective Plating Advanced Force Field Advanced Hacking Suite Experimental Hacking Suite Advanced System Shield Quantum Router > --- WEAPON ----------- Plasma Lance Plasma Lance Plasma Lance > --- INVENTORY -------- Microactuators Transdimensional Reconstructor Warp Cannon Warp Cannon Plasma Lance [Rating: 167] Favorites ----------- Power Light Nuclear Core Engine Light Angular Momentum Engine Power Core Light Nuclear Core Reactor Heavy Antimatter Reactor Propulsion Light Treads Treads Light Treads Leg Aluminum Leg Wheel Armored Wheel Hover Unit Cooled Gravmag System Flight Unit Cooled VTOL Module Utility Hacking Suite Device Experimental Sensor Array Storage Large Storage Unit Processor Advanced Targeting Computer Hackware Hacking Suite Protection Improved Medium Armor Plating Weapon Improved Assault Rifle Energy Gun Gatling Laser Energy Cannon Neutron Cannon Ballistic Gun Improved Assault Rifle Ballistic Cannon AWS/Autocannon Launcher Heavy Proton Missile Launcher Special Weapon Improved Remote Datajack Slashing Weapon Makeshift Sword Piercing Weapon Plasma Lance Build | -11 -10 -10 -9 -9 -9 -8 -8 -7 -6 -5 -5 -5 -5 -4 -4 -4 -4 -3 -3 ------- Run | Scr Mat Min Mat Min Exi Min Mat Fac Fac Fac Upp Upp Zhi Pro Fac Arm Lab Res Qua Slots Evolved 14 | . . . 2 . . . 2 2 2 2 . . . . 2 . . 2 . Power 1 | . . . . . . . . . . . . . . . . . . 1 . Propulsion 2 | . . . . . . . . 1 . 1 . . . . . . . . . Utility 10 | . . . 1 . . . 2 1 2 1 . . . . 2 . . 1 . Weapon 1 | . . . 1 . . . . . . . . . . . . . . . . Parts Attached 359 | 3 10 3 16 2 13 8 28 54 61 34 7 . 13 . 32 14 15 29 17 Power 23 | 1 1 . 3 . 1 1 2 4 3 2 . . 1 . 1 . 1 1 1 Engine 9 | 1 . . 3 . . 1 2 1 1 . . . . . . . . . . Core 9 | . 1 . . . 1 . . 3 2 2 . . . . . . . . . Reactor 5 | . . . . . . . . . . . . . 1 . 1 . 1 1 1 Propulsion 77 | 2 2 1 3 2 1 1 9 19 13 6 1 . 3 . 2 4 4 2 2 Treads 29 | . . . 3 2 . 1 8 10 5 . . . . . . . . . . Leg . | . . . . . . . . . . . . . . . . . . . . Wheel 16 | 2 2 1 . . 1 . . 7 3 . . . . . . . . . . Hover 30 | . . . . . . . 1 2 4 6 1 . 3 . 2 3 4 2 2 Flight 2 | . . . . . . . . . 1 . . . . . . 1 . . . Utility 159 | . 1 1 2 . 6 . 6 21 27 18 4 . 8 . 23 2 4 26 10 Device 85 | . . . . . 2 . 1 9 13 10 2 . 4 . 14 2 1 21 6 Storage 9 | . . 1 1 . 3 . 1 1 . . . . . . . . . . 2 Processor 7 | . 1 . 1 . . . . 2 . . . . . . 1 . . 2 . Hackware 25 | . . . . . . . 3 4 5 5 1 . 1 . 2 . 2 . 2 Protection 33 | . . . . . 1 . 1 5 9 3 1 . 3 . 6 . 1 3 . Artifact . | . . . . . . . . . . . . . . . . . . . . Weapon 100 | . 6 1 8 . 5 6 11 10 18 8 2 . 1 . 6 8 6 . 4 Energy Gun 6 | . 1 . 1 . . . . . 1 1 . . . . 1 . 1 . . Energy Cannon 10 | . . . 2 . . . . . . 3 1 . 1 . . . 1 . 2 Ballistic Gun 46 | . 4 1 5 . 4 4 10 6 8 1 . . . . . 3 . . . Ballistic Cannon 13 | . . . . . 1 1 . 1 9 . . . . . . 1 . . . Launcher 6 | . . . . . . 1 1 3 . . . . . . . . . . 1 Special Weapon 3 | . 1 . . . . . . . . . . . . . . . 1 . 1 Impact Weapon . | . . . . . . . . . . . . . . . . . . . . Slashing Weapon 2 | . . . . . . . . . . 1 1 . . . . . . . . Piercing Weapon 14 | . . . . . . . . . . 2 . . . . 5 4 3 . . Special Melee Weapon . | . . . . . . . . . . . . . . . . . . . . Unidentified Prototypes 39 | . . . 3 . 1 . 3 3 3 3 1 . 3 . 4 3 9 2 1 Parts Lost 66 | . . . . . . 3 2 5 23 7 . . . . 1 5 3 16 1 Power 7 | . . . . . . 1 1 . 2 . . . . . . . . 2 1 Propulsion 16 | . . . . . . 1 . 2 6 1 . . . . . . 1 5 . Utility 31 | . . . . . . 1 . . 11 5 . . . . . 5 2 7 . Weapon 12 | . . . . . . . 1 3 4 1 . . . . 1 . . 2 . Highest Loss Streak 16 | . . . . . . 2 1 2 16 3 . . . . 1 3 3 11 1 Average Slot Usage (%) 88 | . 98 100 99 100 74 86 95 97 80 64 88 94 90 100 95 97 88 84 52 Engine 2 | . 8 . 6 11 . 4 4 . 1 . . . . . . . . . . Core 4 | . 5 14 4 . 10 3 . 4 4 2 5 5 2 . . . . . . Treads 10 | . . . 8 22 17 20 17 14 7 . . . . . . . . . . Wheel 5 | . 28 28 13 . 4 . . 7 7 . . . . . . . . . . Hover 5 | . . . . . . . . . . 17 25 27 27 27 24 25 25 24 7 Device 7 | . . . . . 5 . 2 5 10 18 8 5 11 16 21 25 18 11 6 Storage 6 | . 14 14 11 11 8 11 9 7 5 . . . . . . . . . 1 Processor 10 | . 12 14 22 22 11 11 9 13 6 5 5 5 5 5 5 5 4 7 8 Hackware 11 | . . . . . . . 23 18 13 8 22 22 22 22 20 17 16 16 14 Protection 1 | . . . . . . 3 . . 3 1 7 11 7 5 8 4 2 4 . Ballistic Gun 14 | . 22 28 26 33 8 29 26 20 4 . . . . . . 2 . . . Ballistic Cannon 2 | . . . . . 7 . . 1 8 . . . . . . . . . . Piercing Weapon 1 | . . . . . . . . . . 1 5 5 5 5 8 12 14 12 3 Naked Turns . | . . . . . . . . . . . . . . . . . . . . Heaviest Build 265 | 13 13 18 39 38 265 92 51 42 119 43 47 47 42 42 56 57 42 93 41 Greatest Support 96 | 32 32 24 40 40 40 40 40 20 32 64 55 75 55 55 80 80 81 96 42 Greatest Overweight (x) 22 | . . . 1 . 22 2 1 3 7 3 . . . . 1 1 . 1 . Average Overweight (x) 1 | . . . . . 8 . . 1 1 . . . . . . . . . . Largest Inventory Capacity 35 | 8 8 10 15 15 35 15 15 15 15 5 5 5 5 5 5 5 5 5 20 Average Capacity 14 | 8 8 8 14 15 26 15 15 15 14 5 5 5 5 5 5 5 5 5 6 Most Carried 35 | 7 8 9 15 15 35 15 15 15 15 5 5 5 5 5 5 5 5 5 7 Average Carried 12 | 6 7 8 12 14 16 14 14 14 13 4 4 5 4 5 4 4 4 4 4 Final Capacity 15 | 8 8 10 15 15 15 15 15 15 5 5 5 5 5 5 5 5 5 5 10 Final Carried 15 | 7 8 9 15 15 15 15 15 14 2 5 5 5 5 5 5 4 5 4 7 Class Distribution -------------------- 20% | Hacker-Mutant 17% | Gunner 14% | Hauler-Gunner 12% | Hacker-Gunner 11% | Hacker-Skirmisher 10% | Mutant 5% | Scavenger-Gunner 3% | Wizard-Mutant Dominant Class ---------------- Mutant | -10/Materials Mutant | -10/Mines Gunner | -9/Materials Gunner | -9/Mines Hauler-Gunner | -9/Exiles Gunner | -8/Mines Hacker-Gunner | -8/Materials Hacker-Skirmisher | -7/Factory Hacker-Skirmisher | -6/Factory Mutant | -5/Factory Hacker-Mutant | -5/Upper Caves Hacker-Mutant | -5/Upper Caves Hacker-Mutant | -5/Zhirov Hacker-Mutant | -4/Proximity Caves Hacker-Mutant | -4/Factory Hacker-Mutant | -4/Armory Wizard-Mutant | -4/Lab Wizard-Mutant | -3/Research Hacker-Mutant | -3/Quarantine Resources | -11 -10 -10 -9 -9 -9 -8 -8 -7 -6 -5 -5 -5 -5 -4 -4 -4 -4 -3 -3 ----------- Run | Scr Mat Min Mat Min Exi Min Mat Fac Fac Fac Upp Upp Zhi Pro Fac Arm Lab Res Qua Matter Collected 7067 | 232 283 32 511 209 103 192 1112 1659 1028 340 139 48 287 4 357 124 73 254 80 Remotely . | . . . . . . . . . . . . . . . . . . . . Salvage Created 11616 | 127 765 100 930 430 126 181 1549 2664 1439 410 74 48 363 . 1361 204 73 594 178 Parts 633 | 6 56 5 67 25 22 5 93 160 61 20 7 2 3 . 51 11 5 28 6 Haulers Intercepted 22 | . 2 . 4 . . . 5 5 . . . . . . 6 . . . . Recyclers Shooed 11 | . . 1 2 . . . 1 5 2 . . . . . . . . . . Parts Field Recycled . | . . . . . . . . . . . . . . . . . . . . Retrieved Matter . | . . . . . . . . . . . . . . . . . . . . Parts Self-Destructed 5 | . . . . . . . . . . . 3 . 2 . . . . . . Prevented . | . . . . . . . . . . . . . . . . . . . . Kills | -11 -10 -10 -9 -9 -9 -8 -8 -7 -6 -5 -5 -5 -5 -4 -4 -4 -4 -3 -3 ------- Run | Scr Mat Min Mat Min Exi Min Mat Fac Fac Fac Upp Upp Zhi Pro Fac Arm Lab Res Qua Combat Hostiles Destroyed 160 | . 15 . 14 7 5 5 24 34 28 7 . . . . 7 3 1 10 . Melee 26 | . . . . . . . . . . 6 . . . . 7 2 1 10 . Guns 96 | . 15 . 10 7 . 2 24 30 7 . . . . . . 1 . . . Cannons 32 | . . . 4 . 5 1 . 2 20 . . . . . . . . . . AOE 6 | . . . . . . 2 . 2 1 1 . . . . . . . . . Classes Destroyed 24 | 2 7 . 2 . 4 1 1 2 1 . 2 1 . . . . . 1 . Worker 15 | . 1 . . 2 . . 5 4 1 . . . . . 2 . . . . Builder 14 | . 1 . 3 . . . 3 1 3 . . . . . . . . 3 . Tunneler 3 | 1 1 . . . . . . 1 . . . . . . . . . . . Hauler 22 | . 2 . 4 . . . 5 5 . . . . . . 6 . . . . Recycler 25 | 1 . 1 1 1 . . 3 10 5 . . . . . 2 . . . 1 Minesweeper 1 | . . . . . . . . . . . 1 . . . . . . . . Operator 10 | . 2 . 3 . . . 1 2 . . . . . . . . . 1 1 Drone 2 | . . . . . 2 . . . . . . . . . . . . . . Turret 1 | . . . . . 1 . . . . . . . . . . . . . . Watcher 13 | . 1 . 2 . . . 4 3 1 . . . . . 2 . . . . Swarmer 39 | . 3 . 4 3 . . 6 10 6 . . . . . 1 . . 6 . Grunt 61 | . 12 . 7 3 . 2 13 10 6 3 . . . . . 2 . 3 . Brawler 2 | . . . . . . . 1 1 . . . . . . . . . . . Duelist 3 | . . . 1 . . 1 1 . . . . . . . . . . . . Researcher 1 | . . . . . . . . . . . 1 . . . . . . . . Sentry 16 | . . . 2 1 . . 3 3 3 1 . . . . 3 . . . . Specialist 2 | . . . . . . . . . 2 . . . . . . . . . . Hunter 11 | . . . . . . 1 . 4 5 1 . . . . . . . . . Programmer 16 | . . . . . . . . 5 5 2 . . . . 3 1 . . . Heavy 2 | . . . . . . . . 1 1 . . . . . . . . . . Behemoth 1 | . . . . . . . . . . . . . . . . . . 1 . Zionite 8 | . . . . . 8 . . . . . . . . . . . . . . Samaritan 1 | . . . . . . . . . . . . 1 . . . . . . . Assembled 4 | . . . . . 4 . . . . . . . . . . . . . . Best Kill Streak 14 | 2 3 1 7 4 11 3 12 7 14 4 1 . . . 3 2 1 5 2 Combat Bots Only 11 | . 3 . 3 3 4 3 7 4 11 4 . . . . 3 2 1 4 . Max Kills in Single Turn 4 | 1 2 1 2 1 1 1 2 2 4 1 1 1 . . 1 1 1 1 1 Gunslinging 1 | . . . . . . . 1 . . . . . . . . . . . . Exploded 2 | . . . . . . 1 . 2 1 1 . . . . . . . . . Melee 1 | . . . . . . . . . . 1 . . . . 1 1 1 1 . Uniques/NPCs Destroyed 7 | . . . . 1 4 1 . . . . . . . . . . 1 . . YI-UF0 (-9/Mines) 8R-AWN (-9/Exiles) EX-DEC (-9/Exiles) EX-HEX (-9/Exiles) EX-BIN (-9/Exiles) CL-ANK (-8/Mines) A5 (-4/Lab) Combat | -11 -10 -10 -9 -9 -9 -8 -8 -7 -6 -5 -5 -5 -5 -4 -4 -4 -4 -3 -3 -------- Run | Scr Mat Min Mat Min Exi Min Mat Fac Fac Fac Upp Upp Zhi Pro Fac Arm Lab Res Qua Damage Taken 15621 | . 490 30 255 198 529 477 919 1973 4379 1531 . 64 . . 726 547 355 2856 292 Core 2633 | . 100 20 37 8 39 86 153 353 697 172 . . . . 83 55 27 780 23 Absorbed by Shields 1138 | . . . . . . . . . . . . . . . 226 . . 912 . Core Remaining (%) 63 | 100 . 52 . . . 57 72 49 18 . . . . 82 . . 79 . . Volleys Fired 462 | 2 67 4 51 19 1 11 82 139 62 16 3 . . . . 3 . . 2 Largest 3 | 2 2 2 3 3 1 3 3 3 3 1 1 . . . . 3 . . 1 Hottest 300 | 60 100 40 114 69 23 69 79 96 168 90 90 . . . . 120 . . 300 Shots Fired 1276 | 4 133 8 153 57 61 28 238 389 175 16 3 . . . . 9 . . 2 Gun 1022 | 4 132 8 114 57 1 19 238 376 64 . . . . . . 9 . . . Cannon 245 | . . . 39 . 60 5 . 9 111 16 3 . . . . . . . 2 Launcher 8 | . . . . . . 4 . 4 . . . . . . . . . . . Special 1 | . 1 . . . . . . . . . . . . . . . . . . Kinetic 1163 | 2 105 8 114 57 61 24 238 385 160 . . . . . . 9 . . . Thermal 100 | . 25 . 39 . . . . . 15 16 3 . . . . . . . 2 Explosive 8 | . . . . . . 4 . 4 . . . . . . . . . . . Electromagnetic 5 | 2 3 . . . . . . . . . . . . . . . . . . Robot Hit Streak 27 | 3 15 2 12 15 13 15 13 17 27 . . . . . . 7 . . . Robot Miss Streak 6 | . 4 1 3 2 1 1 6 5 4 . . . . . . 1 . . . Penetration Max . | . . . . . . . . . . . . . . . . . . . . Secondary Targets 11 | . 2 . 1 1 . . 3 4 . . . . . . . . . . . Max Gunslinging Chain 1 | . 1 . 1 1 . . 1 1 . . . . . . . . . . . Autonomous 100 | . . . . . 60 5 . . 35 . . . . . . . . . . Shots Hit Robots 1020 | 3 91 4 105 42 53 23 169 253 118 28 4 2 7 . 40 16 19 37 6 Core Hits 520 | 2 47 3 37 17 17 15 102 110 82 16 3 1 5 . 24 9 6 20 4 Critical Kills 4 | . . . 2 . . . . 1 . . . . . . . 1 . . . Critical Parts Destroyed 4 | . . . . . . . . 1 . . . . . . . 3 . . . Critical Strikes 29 | . 3 . 2 . 3 . . 3 6 7 . . . . . 4 . 1 . Burn 3 | . 3 . . . . . . . . . . . . . . . . . . Destroy 8 | . . . 2 . . . . 2 . . . . . . . 4 . . . Blast 10 | . . . . . 3 . . 1 6 . . . . . . . . . . Sever 5 | . . . . . . . . . . 5 . . . . . . . . . Puncture 3 | . . . . . . . . . . 2 . . . . . . . 1 . Melee Attacks 308 | . . . . . . . . . . 42 7 4 8 . 80 25 48 79 15 Impact . | . . . . . . . . . . . . . . . . . . . . Slashing 30 | . . . . . . . . . . 25 . 1 1 . 3 . . . . Piercing 278 | . . . . . . . . . . 17 7 3 7 . 77 25 48 79 15 Sneak Attacks 21 | . . . . . . . . . . . 2 1 . . 13 . . 4 1 Combat Hostiles . | . . . . . . . . . . . . . . . . . . . . Follow-up Attacks 37 | . . . . . . . . . . 10 . . . . 3 2 5 17 . Damage Inflicted 30911 | 31 982 38 1486 613 3368 850 3009 4758 5678 1565 375 152 1007 . 2950 456 1244 1989 360 Guns 11193 | 31 982 38 971 574 . 185 2932 4437 967 . . . . . . 76 . . . Cannons 8479 | . . . 515 . 3368 309 . 128 4159 . . . . . . . . . . Explosions 1445 | . . . . . . 356 . 193 531 365 . . . . . . . . . Melee 9518 | . . . . . . . . . . 1162 375 136 1007 . 2950 380 1244 1905 359 Ramming 276 | . . . . 39 . . 77 . 21 38 . 16 . . . . . 84 1 Kinetic 18705 | 16 749 38 971 574 3368 494 2932 4565 4922 . . . . . . 76 . . . Thermal 1212 | . 217 . 515 . . . . . 480 . . . . . . . . . . Explosive 914 | . . . . . . 356 . 193 . 365 . . . . . . . . . Electromagnetic 286 | 15 16 . . . . . . . 255 . . . . . . . . . . Impact . | . . . . . . . . . . . . . . . . . . . . Slashing 782 | . . . . . . . . . . 746 . . . . 36 . . . . Piercing 8736 | . . . . . . . . . . 416 375 136 1007 . 2914 380 1244 1905 359 Highest Corruption 15 | . . . . . . . . 1 9 15 15 15 15 15 4 3 3 . . Average Corruption 4 | . . . . . . . . 1 8 11 15 15 15 15 3 1 1 . . Corruption Purged 5 | . . . . . . . . . . . . . . . 5 . . . . Effects 80 | . . . . . . . . 3 5 18 12 7 6 2 24 1 2 . . Message Errors 19 | . . . . . . . . 2 . 1 2 . 4 . 9 . 1 . . Matter Fused 21 | . . . . . . . . . . 8 6 1 1 1 3 . 1 . . Heat Flow Errors 14 | . . . . . . . . . 3 5 . 1 . . 5 . . . . Energy Discharges 9 | . . . . . . . . 1 1 . 3 . 1 . 3 . . . . Parts Rejected 1 | . . . . . . . . . 1 . . . . . . . . . . Data Loss (minor) 9 | . . . . . . . . . . 3 1 . . . 4 1 . . . Data Loss (major) 2 | . . . . . . . . . . 1 . . . 1 . . . . . Misdirections 5 | . . . . . . . . . . . . 5 . . . . . . . Overload Shots . | . . . . . . . . . . . . . . . . . . . . Overflow Damage 1909 | . . . 23 . 421 25 . . 417 27 16 . 181 . 285 55 70 255 134 Projectiles 811 | . . . 23 . 421 25 . . 342 . . . . . . . . . . Explosions 83 | . . . . . . . . . 75 8 . . . . . . . . . Melee 1015 | . . . . . . . . . . 19 16 . 181 . 285 55 70 255 134 Knockbacks 36 | . . . . . 11 . 1 2 21 . . . . . . . . 1 . Impact 2 | . . . . . . . 1 . . . . . . . . . . 1 . Kinetic 32 | . . . . . 10 . . 2 20 . . . . . . . . . . Secondary 2 | . . . . . 1 . . . 1 . . . . . . . . . . Self-Inflicted Damage 271 | . . . . . . 137 . 48 18 19 . 8 . . . . . 41 . Shots 6 | . . . . . . 4 . 1 1 . . . . . . . . . . Rammed 30 | . . . . 3 . . 10 . 9 1 . 1 . . . . . 5 1 Targets Rammed 35 | . . . . 4 . . 14 . 9 1 . 1 . . . . . 5 1 Kicked . | . . . . . . . . . . . . . . . . . . . . Crushed 5 | . . . . 1 . . 4 . . . . . . . . . . . . Highest Temperature 381 | 20 138 8 381 42 1 12 39 222 295 263 116 166 . . 230 24 1 59 158 Average Temperature 55 | 15 34 4 105 10 1 6 10 45 90 57 55 77 . . 95 16 1 16 87 Received Heat Transfer 2445 | . 255 . 87 63 20 36 360 261 531 555 . . . . 66 . . 211 . Effects 3 | . . . 3 . . . . . . . . . . . . . . . . Matter Decay 2 | . . . 2 . . . . . . . . . . . . . . . . Damage (minor) 1 | . . . 1 . . . . . . . . . . . . . . . . Siege Activations . | . . . . . . . . . . . . . . . . . . . . Robots Corrupted . | . . . . . . . . . . . . . . . . . . . . Combat Hostiles . | . . . . . . . . . . . . . . . . . . . . Parts Fried . | . . . . . . . . . . . . . . . . . . . . Impact Corruptions 3 | . . . . . 1 . . . . 1 . . . . . . . 1 . Robots Melted . | . . . . . . . . . . . . . . . . . . . . Combat Hostiles . | . . . . . . . . . . . . . . . . . . . . Parts Melted 5 | . 3 . 1 . . . . . 1 . . . . . . . . . . Heat Transferred 2452 | . 814 . 888 . . . . . 750 . . . . . . . . . . Parts Sabotaged 1 | . . . . . . . . . 1 . . . . . . . . . . Parts Stolen . | . . . . . . . . . . . . . . . . . . . . Parts Stripped . | . . . . . . . . . . . . . . . . . . . . Power Chain Reactions . | . . . . . . . . . . . . . . . . . . . . Missiles Intercepted . | . . . . . . . . . . . . . . . . . . . . Alert | -11 -10 -10 -9 -9 -9 -8 -8 -7 -6 -5 -5 -5 -5 -4 -4 -4 -4 -3 -3 ------- Run | Scr Mat Min Mat Min Exi Min Mat Fac Fac Fac Upp Upp Zhi Pro Fac Arm Lab Res Qua Peak Influence 1060 | 10 342 134 441 206 . 88 354 875 962 853 . . . . 850 1060 . 888 736 Initial 486 | . 6 129 . 171 . . 33 33 198 397 . . . . . 19 . . 486 Average 255 | 8 205 92 274 81 . 74 146 283 349 744 . . . . 208 403 . 323 586 Maximum Alert Level 3 | . 1 . 2 1 . . 1 3 3 3 . . . . 3 3 . 3 3 Low Security (%) 49 | 100 43 100 29 97 . 100 62 34 26 . . . . . 64 46 . 19 . Level 1 32 | . 56 . 33 2 . . 37 51 54 7 . . . . 8 18 . 59 . Level 2 10 | . . . 36 . . . . 7 4 28 . . . . 25 10 . 16 91 Level 3 7 | . . . . . . . . 6 14 64 . . . . 1 24 . 4 8 Level 4 . | . . . . . . . . . . . . . . . . . . . . Level 5 . | . . . . . . . . . . . . . . . . . . . . High Security . | . . . . . . . . . . . . . . . . . . . . Max Security . | . . . . . . . . . . . . . . . . . . . . Squads Dispatched 57 | . 4 . 3 1 . . 1 13 8 5 . . . . 6 3 . 7 6 Investigation 11 | . 2 . . 1 . . . 4 1 2 . . . . 1 . . . . Extermination 12 | . . . . . . . . 4 3 1 . . . . 2 1 . . 1 Reinforcement 28 | . 2 . 3 . . . 1 4 4 . . . . . 2 2 . 5 5 Assault 4 | . . . . . . . . 1 . 2 . . . . 1 . . . . Garrison 1 | . . . . . . . . . . . . . . . . . . 1 . Intercept 1 | . . . . . . . . . . . . . . . . . . 1 . Construction Impeded 2 | . . . . . . . . 1 1 . . . . . . . . . . Haulers Reinforced 5 | . . . . . . . . 2 1 . . . . . . . . 1 1 Active Scanning Responses . | . . . . . . . . . . . . . . . . . . . . Cargo Convoy Interrupts 3 | . . . . . . . . . 1 . . . . . 1 . . 1 . Stealth | -11 -10 -10 -9 -9 -9 -8 -8 -7 -6 -5 -5 -5 -5 -4 -4 -4 -4 -3 -3 --------- Run | Scr Mat Min Mat Min Exi Min Mat Fac Fac Fac Upp Upp Zhi Pro Fac Arm Lab Res Qua Distress Signals 13 | . . . 1 . . . 1 1 1 . . . . . 3 3 . 3 . Communications Jammed . | . . . . . . . . . . . . . . . . . . . . Distress Signals . | . . . . . . . . . . . . . . . . . . . . Times Spotted 430 | . 27 . 29 8 12 5 38 47 46 13 . 9 . . 43 53 1 83 16 Peak Tracking Total 33 | . 6 . 7 3 9 4 8 5 13 6 . 8 . . 9 14 1 33 10 Tactical Retreats 38 | . . . 2 . 2 . 2 . 4 1 . . . . 7 9 . 11 . Traps | -11 -10 -10 -9 -9 -9 -8 -8 -7 -6 -5 -5 -5 -5 -4 -4 -4 -4 -3 -3 ------- Run | Scr Mat Min Mat Min Exi Min Mat Fac Fac Fac Upp Upp Zhi Pro Fac Arm Lab Res Qua Traps Triggered 13 | . 1 . . . . . . 4 3 . . . . . 4 1 . . . Indirectly . | . . . . . . . . . . . . . . . . . . . . Trap Hack Attempts . | . . . . . . . . . . . . . . . . . . . . Triggered . | . . . . . . . . . . . . . . . . . . . . Disarmed . | . . . . . . . . . . . . . . . . . . . . Reprogrammed . | . . . . . . . . . . . . . . . . . . . . Reused . | . . . . . . . . . . . . . . . . . . . . Traps Extracted . | . . . . . . . . . . . . . . . . . . . . Installed . | . . . . . . . . . . . . . . . . . . . . Triggered 2 | . . . . . . . . . . . . . . . 2 . . . . Exploded 2 | . . . . . 2 . . . . . . . . . . . . . . Machines | -11 -10 -10 -9 -9 -9 -8 -8 -7 -6 -5 -5 -5 -5 -4 -4 -4 -4 -3 -3 ---------- Run | Scr Mat Min Mat Min Exi Min Mat Fac Fac Fac Upp Upp Zhi Pro Fac Arm Lab Res Qua Machines Disabled 45 | . . . 3 . 7 . 2 . 5 20 1 1 . . . 2 2 . 2 Max in Single Turn 11 | . . . 1 . 1 . 1 . 4 11 1 1 . . . 1 1 . 1 Garrison Access 6 | . . . . . . . 1 1 . . . . . . 3 . . 1 . Machines Sabotaged . | . . . . . . . . . . . . . . . . . . . . Garrisons Compromised 1 | . . . . . . . . . . . . . . . 1 . . . . Overloaded Fab Kills . | . . . . . . . . . . . . . . . . . . . . Fab Network Shutdowns 3 | . . . . . . . . 1 . . . . . . 1 1 . . . Hacking | -11 -10 -10 -9 -9 -9 -8 -8 -7 -6 -5 -5 -5 -5 -4 -4 -4 -4 -3 -3 --------- Run | Scr Mat Min Mat Min Exi Min Mat Fac Fac Fac Upp Upp Zhi Pro Fac Arm Lab Res Qua Machines Accessed 94 | . 5 1 1 2 2 . 12 15 5 6 1 . 5 . 23 3 1 6 6 Terminals 54 | . 5 . 1 . . . 9 10 4 3 . . . . 13 . . 4 5 Fabricators 11 | . . . . . . . . 3 . 2 . . . . 3 3 . . . Repair Stations 4 | . . . . . . . 1 1 . . . . . . 2 . . . . Recycling Units 5 | . . . . . . . . . 1 . . . . . 3 . . 1 . Scanalyzers 3 | . . . . . . . 1 . . 1 . . . . . . . . 1 Garrison Access 5 | . . . . . . . 1 1 . . . . . . 2 . . 1 . Total Hacks 369 | . 22 1 3 2 2 . 39 39 27 27 1 . 18 . 109 18 1 31 29 Successful 243 | . 14 1 1 2 2 . 33 30 15 13 1 . 18 . 66 8 1 20 18 Failed 123 | . 7 . 2 . . . 5 9 12 14 . . . . 42 10 . 11 11 Catastrophic 7 | . . . . . . . . . 2 2 . . . . . . . 1 2 Database Lockouts 3 | . 1 . . . . . 1 . . . . . . . 1 . . . . Manual 159 | . 11 . 3 . 1 . 18 19 19 10 . . . . 43 8 1 14 12 Terminals 239 | . 22 . 3 . . . 30 28 21 13 . . . . 71 . . 25 26 Fabricators 48 | . . . . . . . . 9 . 10 . . . . 11 18 . . . Repair Stations 13 | . . . . . . . 4 1 . . . . . . 8 . . . . Recycling Units 25 | . . . . . . . . . 6 . . . . . 14 . . 5 . Scanalyzers 11 | . . . . . . . 4 . . 4 . . . . . . . . 3 Garrison Access 8 | . . . . . . . 1 1 . . . . . . 5 . . 1 . Terminal Hacks 135 | . 11 1 . 2 2 . 18 15 8 1 1 . 18 . 32 . 1 11 14 Record 11 | . . . . . 1 . . . . . 1 . 6 . . . 1 . 2 Part Schematic 12 | . . . . . . . 1 2 . . . . 4 . 4 . . 1 . Robot Analysis 14 | . 3 . . . . . 3 . . . . . 4 . 1 . . 1 2 Prototype ID Bank 13 | . 1 . . . . . 1 3 . . . . 4 . 1 . . 1 2 Open Door 4 | . . 1 . 2 . . . . . . . . . . . . . 1 . Level Access Points 5 | . 1 . . . . . 1 1 . . . . . . 1 . . . 1 Branch Access Points 5 | . . . . . . . 1 1 1 . . . . . 1 . . 1 . Machine Index 2 | . . . . . . . 1 . . 1 . . . . . . . . . Terminal Index 7 | . 1 . . . . . 1 1 1 . . . . . 1 . . 1 1 Fabricator Index 5 | . . . . . . . . 1 2 . . . . . 1 . . 1 . Unreport Threat 15 | . . . . . . . 3 4 1 . . . . . 7 . . . . Locate Traps 16 | . 3 . . . . . 3 1 2 . . . . . 4 . . . 3 Transport Status 2 | . . . . . . . 2 . . . . . . . . . . . . Recall Investigation 2 | . . . . . . . . . . . . . . . 2 . . . . Recall Extermination 3 | . . . . . . . . . 1 . . . . . 2 . . . . Recall Reinforcements 2 | . . . . . . . . . . . . . . . 1 . . 1 . Recall Assault 1 | . . . . . . . . 1 . . . . . . . . . . . Hauler Manifests 5 | . 1 . . . . . 1 . . . . . . . 1 . . 1 1 Registered Components 3 | . . . . . . . . . . . . . . . 1 . . 1 1 Registered Prototypes 1 | . . . . . . . . . . . . . . . 1 . . . . Zone Layout 6 | . 1 . . . . . . . . . . . . . 3 . . 1 1 EX-Prototype ID Bank 1 | . . . . . 1 . . . . . . . . . . . . . . Fabricator Hacks 22 | . . . . . . . . 6 . 4 . . . . 7 5 . . . Network Status 3 | . . . . . . . . 1 . . . . . . 2 . . . . Load Schematic 9 | . . . . . . . . 2 . 2 . . . . 2 3 . . . Build 10 | . . . . . . . . 3 . 2 . . . . 3 2 . . . Repair Station Hacks 10 | . . . . . . . 4 . . . . . . . 6 . . . . Scan Component 5 | . . . . . . . 2 . . . . . . . 3 . . . . Repair 5 | . . . . . . . 2 . . . . . . . 3 . . . . Recycling Unit Hacks 5 | . . . . . . . . . 1 . . . . . 3 . . 1 . Retrieve Components 5 | . . . . . . . . . 1 . . . . . 3 . . 1 . Scanalyzer 9 | . . . . . . . 4 . . 3 . . . . . . . . 2 Insert Component 4 | . . . . . . . 2 . . 1 . . . . . . . . 1 Analyze 5 | . . . . . . . 2 . . 2 . . . . . . . . 1 Garrison Access Hacks 5 | . . . . . . . 1 1 . . . . . . 2 . . 1 . Seal Access 5 | . . . . . . . 1 1 . . . . . . 2 . . 1 . Unauthorized Hacks 57 | . 3 . 1 . . . 6 8 6 5 . . . . 16 3 . 7 2 Terminals 32 | . 3 . 1 . . . 6 4 2 3 . . . . 8 . . 3 2 Track 1 | . . . . . . . . . . . . . . . 1 . . . . Assimilate 2 | . . . . . . . . . . 1 . . . . . . . 1 . Botnet 23 | . 2 . 1 . . . 4 4 2 2 . . . . 4 . . 2 2 Disrupt 4 | . . . . . . . 1 . . . . . . . 3 . . . . Operators 2 | . 1 . . . . . 1 . . . . . . . . . . . . Fabricators 10 | . . . . . . . . 3 . 2 . . . . 2 3 . . . Report 1 | . . . . . . . . 1 . . . . . . . . . . . Prioritize 2 | . . . . . . . . . . 1 . . . . . 1 . . . Siphon 6 | . . . . . . . . 2 . 1 . . . . 1 2 . . . Haulers 1 | . . . . . . . . . . . . . . . 1 . . . . Repair Stations 1 | . . . . . . . . 1 . . . . . . . . . . . Mechanics 1 | . . . . . . . . 1 . . . . . . . . . . . Recycling Units 14 | . . . . . . . . . 4 . . . . . 6 . . 4 . Monitor 3 | . . . . . . . . . 1 . . . . . 1 . . 1 . Reject 4 | . . . . . . . . . 1 . . . . . 2 . . 1 . Recyclers 3 | . . . . . . . . . 1 . . . . . 1 . . 1 . Mask 4 | . . . . . . . . . 1 . . . . . 2 . . 1 . Scanalyzers . | . . . . . . . . . . . . . . . . . . . . Garrison Access . | . . . . . . . . . . . . . . . . . . . . Data Cores Recovered 2 | . . . 1 . . . . 1 . . . . . . . . . . . Used 1 | . . . 1 . . . . . . . . . . . . . . . . Hacking Detections 65 | . 5 . 1 . . . 9 14 5 4 . . . . 17 2 . 2 6 Full Trace Events 6 | . 1 . . . . . . 2 . 2 . . . . 1 . . . . Feedback Events 1 | . . . . . . . . . . . . . . . 1 . . . . Corruption 1 | . . . . . . . . . . . . . . . 1 . . . . Feedback Blocked . | . . . . . . . . . . . . . . . . . . . . Robot Schematics Acquired . | . . . . . . . . . . . . . . . . . . . . Robots Built . | . . . . . . . . . . . . . . . . . . . . Matter . | . . . . . . . . . . . . . . . . . . . . Time . | . . . . . . . . . . . . . . . . . . . . Total Robot Build Rating . | . . . . . . . . . . . . . . . . . . . . Part Schematics Acquired 16 | . . . . . . . 3 2 . 1 . . 4 . 4 . . 1 1 Parts Built 11 | . . . . . . . . 3 . 1 . . . . 3 4 . . . Matter 1826 | . . . . . . . . 477 . 318 . . . . 583 448 . . . Time 658 | . . . . . . . . 265 . 106 . . . . 159 128 . . . Total Part Build Rating 74 | . . . . . . . . 18 . 6 . . . . 18 32 . . . Parts Repaired 5 | . . . . . . . 2 . . . . . . . 3 . . . . Time 314 | . . . . . . . 77 . . . . . . . 237 . . . . Parts Recycled . | . . . . . . . . . . . . . . . . . . . . Recycled Matter . | . . . . . . . . . . . . . . . . . . . . Retrieved Matter . | . . . . . . . . . . . . . . . . . . . . Retrieved Components 24 | . . . . . . . . . 7 . . . . . 14 . . 3 . Parts Scanalyzed 4 | . . . . . . . 2 . . 1 . . . . . . . . 1 Part Schematics Acquired 4 | . . . . . . . 2 . . 1 . . . . . . . . 1 Parts Damaged . | . . . . . . . . . . . . . . . . . . . . Bothacking | -11 -10 -10 -9 -9 -9 -8 -8 -7 -6 -5 -5 -5 -5 -4 -4 -4 -4 -3 -3 ------------ Run | Scr Mat Min Mat Min Exi Min Mat Fac Fac Fac Upp Upp Zhi Pro Fac Arm Lab Res Qua Used RIF Installer . | . . . . . . . . . . . . . . . . . . . . Robots Hacked . | . . . . . . . . . . . . . . . . . . . . Non-combat . | . . . . . . . . . . . . . . . . . . . . Combat . | . . . . . . . . . . . . . . . . . . . . Robot Hacks Applied . | . . . . . . . . . . . . . . . . . . . . Relay Couplers Released 6 | . . . . . . . . . 4 . . . . . 2 . . . . Machine Destruction 2 | . . . . . . . . . . . . . . . 2 . . . . Programmers 4 | . . . . . . . . . 4 . . . . . . . . . . Robots Rewired 4 | . . . . . . . . . . . . . . . 1 3 . . . Allies Hacked . | . . . . . . . . . . . . . . . . . . . . Hacks Repelled . | . . . . . . . . . . . . . . . . . . . . Allies | -11 -10 -10 -9 -9 -9 -8 -8 -7 -6 -5 -5 -5 -5 -4 -4 -4 -4 -3 -3 -------- Run | Scr Mat Min Mat Min Exi Min Mat Fac Fac Fac Upp Upp Zhi Pro Fac Arm Lab Res Qua Total Allies 18 | . . 3 . . . . . . . 1 . . . . 4 3 . 1 6 Largest Group 6 | . . 3 2 . . . . . . 1 . . . . 3 3 . 1 6 Highest-Rated Group 141 | . . 40 32 . . . . . . 26 . . . . 138 141 . 10 87 Highest-Rated Ally 47 | . . 16 16 . . . . . . 26 . . . . 47 47 . 10 15 Total Orders 5 | . . . . . 1 . . . . 1 . . . . . 3 . . . STAY 3 | . . . . . . . . . . 1 . . . . . 2 . . . FOLLOW 1 | . . . . . . . . . . . . . . . . 1 . . . RETURN 1 | . . . . . 1 . . . . . . . . . . . . . . Ally Attacks 115 | . . . 24 . 12 . . . . . . . . . 8 . . . 71 Total Damage 1474 | . . . 190 . 55 . . . . . . . . . 208 . . . 1021 Kills 10 | . . . 3 . 1 . . . . . . . . . . . . . 6 Allies Corrupted 1 | . . . . . . . . . . . . . . . 1 . . . . Allies Melted . | . . . . . . . . . . . . . . . . . . . . Intel | -11 -10 -10 -9 -9 -9 -8 -8 -7 -6 -5 -5 -5 -5 -4 -4 -4 -4 -3 -3 ------- Run | Scr Mat Min Mat Min Exi Min Mat Fac Fac Fac Upp Upp Zhi Pro Fac Arm Lab Res Qua Robot Analysis Total 14 | . 3 . . . . . 3 . . . . . 4 . 1 . . 1 2 Derelict Logs Recovered 8 | . . 2 . 1 . . . . . . 2 1 . 2 . . . . . Drone Launches 9 | . . . . . 6 . . . . 3 . . . . . . . . . Drone Recoveries 3 | . . . . . 3 . . . . . . . . . . . . . . Exploration | -11 -10 -10 -9 -9 -9 -8 -8 -7 -6 -5 -5 -5 -5 -4 -4 -4 -4 -3 -3 ------------- Run | Scr Mat Min Mat Min Exi Min Mat Fac Fac Fac Upp Upp Zhi Pro Fac Arm Lab Res Qua Turns Passed 18998 | 44 773 572 684 1354 3920 155 2377 3237 1388 624 288 66 134 78 1754 523 200 557 270 Spaces Moved 13538 | 29 590 605 346 614 1128 58 1150 1749 812 614 671 219 241 229 2504 670 264 753 292 Core 109 | . . . . . . . . . 1 108 . . . . . . . . . Treads 2630 | . . . 124 614 650 58 1150 33 1 . . . . . . . . . . Legs . | . . . . . . . . . . . . . . . . . . . . Wheels 4340 | 29 590 605 222 . 478 . . 1716 700 . . . . . . . . . . Hover 6459 | . . . . . . . . . 110 506 671 219 241 229 2504 670 264 753 292 Flight . | . . . . . . . . . . . . . . . . . . . . Fastest Speed 15 | 100 90 90 90 160 105 160 160 110 80 22 36 16 34 34 15 15 21 28 66 Average Speed 104 | 100 90 90 123 160 338 178 167 126 126 46 36 25 34 34 33 37 43 46 68 Slowest Speed 760 | 100 100 90 160 160 760 360 260 260 470 200 38 36 36 34 84 84 52 114 80 Overloaded Moves 373 | . . . . . . . . . . 37 . 111 . . 58 20 12 135 . Propulsion Burnouts . | . . . . . . . . . . . . . . . . . . . . Robots Hopped . | . . . . . . . . . . . . . . . . . . . . Cave-ins Triggered 2 | . . . . . . . . . 1 1 . . . . . . . . . Teleports 2 | . . . . . . . . . . . . . . . . 1 . 1 . Exploration Rate (%) 53 | 2 92 99 34 98 89 10 82 42 20 13 80 46 62 48 56 29 98 31 33 Regions Visited 19 Branch Regions 11 Pre-discovered Areas 7 | . . 1 . 1 1 . . . . . 1 . 3 . . . . . . Known Exits Taken 13 | . . 1 . . . . 1 1 1 1 1 1 1 1 1 1 1 1 . Unknown Exits Taken 6 | 1 1 . 1 1 1 1 . . . . . . . . . . . . . Scrap Searched 8 | . . 1 . 1 . 1 . . . . 2 3 . . . . . . . Spaces Dug 132 | . 1 . . . . . . 30 8 17 3 . . . 24 9 7 17 16 Terrain Destroyed 263 | . 1 . . . 6 41 1 39 42 57 3 . . . 24 9 7 17 16 Melee 66 | . . . . . . . . . . 2 . . . . 24 9 7 17 7 Projectile 67 | . 1 . . . 6 . 1 3 29 15 3 . . . . . . . 9 AOE 130 | . . . . . . 41 . 36 13 40 . . . . . . . . . Terrain Rammed . | . . . . . . . . . . . . . . . . . . . . Walls Destroyed . | . . . . . . . . . . . . . . . . . . . . Machines Disabled . | . . . . . . . . . . . . . . . . . . . . Actions | -11 -10 -10 -9 -9 -9 -8 -8 -7 -6 -5 -5 -5 -5 -4 -4 -4 -4 -3 -3 --------- Run | Scr Mat Min Mat Min Exi Min Mat Fac Fac Fac Upp Upp Zhi Pro Fac Arm Lab Res Qua Total 17297 | 42 711 626 502 947 1243 92 1419 2609 1032 861 701 223 281 228 3305 908 332 896 339 Wait 2176 | . 27 7 55 288 13 6 102 632 39 141 . 1 . . 660 175 1 27 2 Move 13518 | 28 589 604 345 613 1127 57 1149 1748 811 612 670 218 240 228 2503 669 263 752 292 Hop . | . . . . . . . . . . . . . . . . . . . . Pick Up 174 | 5 6 4 14 10 55 5 14 14 12 8 6 . 5 . 9 2 3 1 1 Fast Attach 183 | . 3 . 8 . 6 1 9 8 22 27 4 . 10 . 20 10 16 25 14 Attach 74 | 3 . . 2 . 6 5 5 9 24 2 3 . 1 . 2 3 2 5 2 Detach 27 | . . . 1 . 1 1 2 1 10 1 1 . . . . . 1 4 4 Swap 110 | . 7 3 6 2 1 2 15 37 15 5 1 . 3 . 10 2 . . 1 Drop 264 | 4 12 4 20 11 33 4 27 21 24 15 6 . 15 . 19 12 9 23 5 Fire 462 | 2 67 4 51 19 1 11 82 139 62 16 3 . . . . 3 . . 2 Melee 243 | . . . . . . . . . . 32 7 3 7 . 69 19 37 54 15 Ram 14 | . . . . . . . . . 6 1 . 1 . . . . . 5 1 Kick . | . . . . . . . . . . . . . . . . . . . . Crush 21 | . . . . 4 . . 14 . 3 . . . . . . . . . . Escape Stasis 11 | . . . . . . . . . 4 1 . . . . 6 . . . . Rewire 20 | . . . . . . . . . . . . . . . 7 13 . . . Trap . | . . . . . . . . . . . . . . . . . . . . Miscellaneous . | . . . . . . . . . . . . . . . . . . . . Route ------- -11/Scrapyard -10/Materials (discovered 4 exits: *Mat x3 / *Min) -10/Mines (discovered 2 exits: *Mat x2) -9/Materials (discovered 2 exits: *Mat / *Min) -9/Mines (discovered 4 exits: *Mat x2 / *Exi / [*Zio]) -9/Exiles -8/Mines -8/Materials (discovered 3 exits: *Fac x3) -7/Factory (discovered 8 exits: *Fac x4 / *Sto x2 / *Low x2) -6/Factory (discovered 5 exits: *Fac / Low x2 / Ext x2) -5/Factory -5/Upper Caves -5/Upper Caves -5/Zhirov -4/Proximity Caves -4/Factory (discovered 7 exits: *Res x4 / *Upp x2 / *Arm) -4/Armory -4/Lab -3/Research (discovered 2 exits: *Qua x2) -3/Quarantine (discovered 1 exit: Res) History --------- Turn | Location | Event 7 | -11/Scrapyard | Discovered new exit (range 3) 45 | -11/Scrapyard | Entered Materials 162 | -10/Materials | Discovered new exit (range 9) 164 | -10/Materials | Central database locked down 325 | -10/Materials | Build established: Mutant 447 | -10/Materials | Identified exit to Materials 818 | -10/Materials | Entered Mines 829 | -10/Mines | Found a hidden stash of uninstalled traps 852 | -10/Mines | Assisted by bots powering up and referring to "LRC-V3" 866 | -10/Mines | Learned location of Storage (-7) 906 | -10/Mines | Met a Derelict who couldn't figure out how to use a Trap Extractor 987 | -10/Mines | Learned Materials stockpile data 1031 | -10/Mines | Found a damaged Exp. Sensor Array with a note attached 1033 | -10/Mines | Found Prototype Device 1124 | -10/Mines | Discovered exit to Materials (range 9) 1288 | -10/Mines | Discovered exit to Materials (range 5) 1390 | -10/Mines | Entered Materials 1390 | -9/Materials | Accompanied by 2 allies 1390 | -9/Materials | Evolved 2 slots: Utility x1, Weapon x1 1681 | -9/Materials | Build established: Gunner 1992 | -9/Materials | Discovered new exit (range 9) 2016 | -9/Materials | Discovered new exit (range 16) 2074 | -9/Materials | Entered Mines 2075 | -9/Mines | Assembled infested the area 2185 | -9/Mines | Met a Derelict bent on vengeance 2561 | -9/Mines | Discovered new exit (range 6) 2564 | -9/Mines | YI-UF0 nonchalantly dropped a Grenade Launcher on the ground 2598 | -9/Mines | Destroyed YI-UF0 2661 | -9/Mines | Met a Derelict shopkeep closing up shop 3057 | -9/Mines | Discovered new exit (range 12) 3078 | -9/Mines | Found the Drone Emporium 3091 | -9/Mines | Found Prototype Device 3202 | -9/Mines | A Derelict revealed a hidden shortcut to a safe place 3422 | -9/Mines | Discovered new exit (range 5) 3428 | -9/Mines | Entered Exiles 3467 | -9/Exiles | Met 8R-AWN 3496 | -9/Exiles | Met EX-HEX 3545 | -9/Exiles | Met EX-BIN 3563 | -9/Exiles | Aligned with FarCom system 3564 | -9/Exiles | Given EX-Vault access code 3601 | -9/Exiles | Opened EX-Vault 3615 | -9/Exiles | Identified Thief Drone Bay 3627 | -9/Exiles | Found Cloak of Protection 3651 | -9/Exiles | Found AWS/Autocannon 3685 | -9/Exiles | Warned to stay clear of 0b10 Research branches 3824 | -9/Exiles | Attacked by the Exiles 3849 | -9/Exiles | Destroyed 8R-AWN 4069 | -9/Exiles | Destroyed EX-DEC 4079 | -9/Exiles | Destroyed EX-HEX 4105 | -9/Exiles | Destroyed EX-BIN 4358 | -9/Exiles | Discovered new exit (range 10) 4905 | -9/Exiles | Build established: Hauler-Gunner 4975 | -9/Exiles | Learned location of Zion (-7) 5458 | -9/Exiles | Found Trap Reconfigurator 6025 | -9/Exiles | Found Deploy-a-Sentry 7348 | -9/Exiles | Left Exiles lab with AWS/Autocannon 7348 | -9/Exiles | Entered Mines 7395 | -8/Mines | CL-ANK came to Exiles' defense 7403 | -8/Mines | Destroyed CL-ANK 7485 | -8/Mines | Discovered new exit (range 10) 7503 | -8/Mines | Entered Materials 7503 | -8/Materials | Evolved 2 slots: Utility x2 7572 | -8/Materials | Repaired Imp. Assault Rifle 7599 | -8/Materials | Repaired Lgt. Treads 7738 | -8/Materials | Destroyed 7 combat bots 7895 | -8/Materials | Build established: Hacker-Gunner 8405 | -8/Materials | Identified Exp. Sensor Array 8610 | -8/Materials | Identified exit to Factory 8742 | -8/Materials | Central database locked down 9624 | -8/Materials | Build established: Scavenger-Gunner 9880 | -8/Materials | Entered Factory 9880 | -7/Factory | Evolved 2 slots: Propulsion x1, Utility x1 9988 | -7/Factory | Discovered new exit (range 4) 9992 | -7/Factory | Identified exit to Lower Caves 10194 | -7/Factory | Build established: Hacker-Skirmisher 10759 | -7/Factory | Identified exit to Storage 11145 | -7/Factory | Build established: Scavenger-Gunner 11562 | -7/Factory | Build established: Hacker-Gunner 11957 | -7/Factory | Fabricated Adv. Hacking Suite? 12023 | -7/Factory | Fabricated Adv. Hacking Suite (x1) 12129 | -7/Factory | Fabricated Adv. Hacking Suite? 12283 | -7/Factory | Build established: Hacker-Skirmisher 12542 | -7/Factory | Local fabrication network quarantined 12680 | -7/Factory | First assault squad dispatched 12702 | -7/Factory | Identified exit to Factory 13054 | -7/Factory | Core integrity fell below 50% 13117 | -7/Factory | Entered another Factory area 13117 | -6/Factory | Evolved 2 slots: Utility x2 13508 | -6/Factory | Build established: Hacker-Mutant 13583 | -6/Factory | Lost 3 parts (1n2u) 14137 | -6/Factory | Identified exit to Lower Caves 14137 | -6/Factory | Identified exit to Extension 14176 | -6/Factory | Build established: Hacker-Skirmisher 14310 | -6/Factory | Cargo convoy interrupted 14334 | -6/Factory | Crushed by falling debris 14334 | -6/Factory | Core integrity fell below 50% 14415 | -6/Factory | Destroyed 11 combat bots 14440 | -6/Factory | Lost 16 parts (1p4n7u4w) 14493 | -6/Factory | Core integrity fell below 20% 14502 | -6/Factory | Discovered new exit (range 3) 14504 | -6/Factory | Identified exit to Factory 14505 | -6/Factory | Entered another Factory area 14505 | -5/Factory | Evolved 2 slots: Propulsion x1, Utility x1 14658 | -5/Factory | Crushed by falling debris 14659 | -5/Factory | System corruption reached 10% 14689 | -5/Factory | Lost 3 parts (1n2u) 14805 | -5/Factory | First assault squad dispatched 14922 | -5/Factory | Discovered new exit (range 4) 14923 | -5/Factory | Identified exit to Upper Caves 15033 | -5/Factory | Fabricated Adv. Hacking Suite (x1) 15129 | -5/Factory | Entered Upper Caves 15131 | -5/Upper Caves | Learned location of 1 exit from Factory 15140 | -5/Upper Caves | Encountered a Warlord checkpoint 15152 | -5/Upper Caves | Lost 3 parts (2u1w) 15155 | -5/Upper Caves | Learned location of Armory (-4) 15176 | -5/Upper Caves | Found Alien Artifact 15176 | -5/Upper Caves | Identified Core Expander 15176 | -5/Upper Caves | Installed Core Expander, added new Propulsion slot 15266 | -5/Upper Caves | Discovered new exit (range 16) 15397 | -5/Upper Caves | Build established: Hacker-Mutant 15417 | -5/Upper Caves | Identified exit to Upper Caves 15417 | -5/Upper Caves | Entered another Upper Caves area 15417 | -5/Upper Caves | Spotted O9-ZTE(f) 15418 | -5/Upper Caves | Encountered a Master Thief 15437 | -5/Upper Caves | Learned location of 1 exit from Factory 15460 | -5/Upper Caves | Spotted 8F-WVO(f) 15466 | -5/Upper Caves | Encountered a Master Thief 15469 | -5/Upper Caves | Attacked by a delusional Derelict stockpiling parts 15478 | -5/Upper Caves | Discovered new exit (range 14) 15482 | -5/Upper Caves | Identified exit to Zhirov 15483 | -5/Upper Caves | Entered Zhirov 15484 | -5/Zhirov | Discovered new exit (range 3) 15490 | -5/Zhirov | Met Zhirov 15498 | -5/Zhirov | Learned location of Quarantine (-3) 15498 | -5/Zhirov | Learned location of Testing (-2) 15498 | -5/Zhirov | Learned location of Command (-1) 15504 | -5/Zhirov | Zhirov requested help retrieving the SGEMP Prototype 15511 | -5/Zhirov | Found Alien Artifact 15511 | -5/Zhirov | Identified Integrated Reactor 15511 | -5/Zhirov | Installed Integrated Reactor, increased core energy generation (+10) 15522 | -5/Zhirov | Found Alien Artifact 15616 | -5/Zhirov | Identified exit to Proximity Caves 15617 | -5/Zhirov | Entered Proximity Caves 15666 | -4/Proximity Caves | Learned 8 Research zone layouts 15667 | -4/Proximity Caves | Identified exit to Factory 15695 | -4/Proximity Caves | Entered Factory 15695 | -4/Factory | Evolved 2 slots: Utility x2 15696 | -4/Factory | Identified exit to Research 15696 | -4/Factory | Identified exit to Upper Caves 15876 | -4/Factory | Repaired Exp. Sensor Array 15967 | -4/Factory | Repaired Cld. Gravmag System 16118 | -4/Factory | Discovered exit to Upper Caves (range 6) 16332 | -4/Factory | Found Prototype Device 16332 | -4/Factory | Identified Exp. ECM Suite 16668 | -4/Factory | Fabricated Adv. Hacking Suite (x1) 16723 | -4/Factory | Fabricated Adv. Hacking Suite (x1) 16781 | -4/Factory | Central database locked down 16834 | -4/Factory | Spotted B-86 Titan 16847 | -4/Factory | Discovered exit to Research (range 9) 16888 | -4/Factory | Local fabrication network quarantined 16904 | -4/Factory | Fabricated Adv. Hacking Suite? 17136 | -4/Factory | Cargo convoy interrupted 17168 | -4/Factory | Identified exit to Armory 17196 | -4/Factory | Repaired Exp. Propulsion Shielding? 17369 | -4/Factory | Discovered exit to Research (range 16) 17389 | -4/Factory | Allied Derelicts emerged from ambush trap array 17449 | -4/Factory | Entered Armory 17820 | -4/Armory | Fabricated Cmb. Antigrav System? 17827 | -4/Armory | Fabricated Cmb. Antigrav System? 17843 | -4/Armory | Local fabrication network quarantined 17938 | -4/Armory | Identified Transdimensional Reconstructor 17938 | -4/Armory | Warped through subspace to slip node 17938 | -4/Armory | Discovered new exit (range 1) 17938 | -4/Armory | Identified exit to Lab 17968 | -4/Armory | Lost 3 parts (3u) 17972 | -4/Armory | Entered Lab 17972 | -4/Lab | Discovered exit to Research (range 9) 17977 | -4/Lab | Unable to decrypt terminal 17977 | -4/Lab | Opened the door to a hidden lab 17978 | -4/Lab | Gained access to the hidden lab's interior 17979 | -4/Lab | Detected by scanners 17982 | -4/Lab | Found Alien Artifact 17982 | -4/Lab | Identified Core Reset Matrix 17982 | -4/Lab | Used Core Reset Matrix 17986 | -4/Lab | Sensed 3 artifacts in vicinity 17988 | -4/Lab | Confronted by A5 17988 | -4/Lab | Found Transdimensional Reconstructor 17998 | -4/Lab | Discovered exit to Research (range 7) 18017 | -4/Lab | Destroyed A5 18021 | -4/Lab | Found Prototype Hackware 18021 | -4/Lab | Identified Exp. Hacking Suite 18032 | -4/Lab | Lost 3 parts (1n2u) 18044 | -4/Lab | Found Integrated Mediator 18044 | -4/Lab | Installed Integrated Mediator, increased core attachment efficiency. 18049 | -4/Lab | Found Core Expander 18049 | -4/Lab | Installed Core Expander, added new Propulsion slot 18059 | -4/Lab | Found Prototype Hackware 18059 | -4/Lab | Identified Quantum Router 18061 | -4/Lab | Found Prototype Protection 18061 | -4/Lab | Identified Med. Regenerative Plating 18064 | -4/Lab | Found Prototype Energy Cannon 18064 | -4/Lab | Identified Warp Cannon 18069 | -4/Lab | Found Warp Cannon 18079 | -4/Lab | Found Prototype Special Weapon 18079 | -4/Lab | Identified Gui. Remote Datajack 18162 | -4/Lab | Unable to decrypt terminal 18172 | -4/Lab | Entered Research 18172 | -3/Research | Evolved 2 slots: Power x1, Utility x1 18175 | -3/Research | Identified exit to Quarantine 18185 | -3/Research | Spotted B-86 Titan 18274 | -3/Research | Destroyed B-86 Titan 18295 | -3/Research | Found Unknown Protection 18295 | -3/Research | Identified Hvy. Reflective Plating 18318 | -3/Research | Lost 3 parts (3u) 18341 | -3/Research | Build established: Wizard-Mutant 18445 | -3/Research | Found Prototype Device 18445 | -3/Research | Identified Exp. Thermal Defense Suite 18613 | -3/Research | Intercept squad dispatched 18632 | -3/Research | Warped through subspace 18632 | -3/Research | Spotted B-86 Titan 18680 | -3/Research | Garrison activated, responded to threat 18701 | -3/Research | Spotted Executioner 18702 | -3/Research | Cargo convoy interrupted 18720 | -3/Research | Core integrity fell below 50% 18729 | -3/Research | Entered Quarantine 18730 | -3/Quarantine | Detected hypermatrix surge 18730 | -3/Quarantine | Emitted hypermatrix ping 18730 | -3/Quarantine | Sensed 4 artifacts in vicinity 18735 | -3/Quarantine | Assembled emerged from beneath the floor 18758 | -3/Quarantine | Lost 11 parts (2p3n4u2w) 18891 | -3/Quarantine | Found Phase Redirector 18906 | -3/Quarantine | Identified exit to Research 18984 | -3/Quarantine | Found Core Cannon 18997 | -3/Quarantine | Scanned by Researcher 18999 | -3/Quarantine | Self-destructed Last Messages --------------- Exp. Biometal Medium Treads 18979_ ALERT: Rogue bot located, Programmers report to Quarantine Zone 3Y. 18980_ ALERT: Hostile activity reported, dispatching reinforcements to area. 18980_ Suspension Chamber breached. 18983_ Dropped Imp. Remote Datajack. 18984_ Acquired Core Cannon. 18990_ ALERT: Hostile activity reported, dispatching reinforcements to area. 18991_ Beam penetrates Wall. 18994_ C-55 Analyst calibrates the Subatomic Condenser. 18996_ Slammed into S-43 Plague. 18997_ C-55 Analyst calls for reinforcements. 18997_ ALERT: Hostile activity reported, dispatching reinforcements to area. 18997_ Held in stasis. 18997_ C-55 Analyst is analyzing... 18997_ ALERT: Encountered unknown unique technology, formulating response. 18998_ U-05 Engineer builds a Wall. 18999_ Particle Reactor destroyed. Map ----- +----------------------------------------------------+ | # """ """ """ #?????????????? ???????????????? | | # """ """ """ #????????????? ???????????????? | | # #????? ?????? ??????????????? | | # = ###?# # #??????????? | | ########/#######"######+### #??????????? | | ^ #??????????? | | ^^ #??????????? | | ^^ #??????????? | | ^ #??????????? | | ###### ###########"#+########### ##??????????? | | ?##??# # # ######### #???????????? | | ###### # """" # # ## #???????????? | | / " """ # """ # ## ##??????????? | | # """ " # """ # "" # ??????????? | | # " # """ # """ + ??????????? | | / "" # # " " # ??????????? | | ##+## #### # "" # |"" # ??????????? | | # #### # "" # "" #### ??????????? | | """ + #??########### "T # #??# ??????????? | | """ ##+#####?#???# ## "" [########### ??????????? | | """ # #?????# ## "" # ""???????? | | """ # """ #?????# ## # ""???????? | | """ # """ ##????# ######## ??????? | | # """ #?#####+######;# ???????? | | =# #?#] ss# ###########???????? | | ! # = #?# " " """ @# # ??????????? | | !! ########?# ""R"" """ss# # ??????????? | | !! =#????????# """"" """c + + """ "??????????? | | #????????# # # """ "??????????? | | #?????#??############;# # """ "??????????? | | #####????????############;# ########??????????? | | #????????????# # ########??????????? | | ?????????????# # # ??????????? | | ?????????????# """"""""" # #" ??????????? | | ????????????#??????????? + #?????????????????? | | ???????????????????????? # ?#?????????????????? | | ??????#?????????????????#;#??????????????????????? | | ????????????????????????? ???????????????????????? | | ????????????????????????? ???????????????????????? | | ????????????????????????? ???????????????????????? | | ?????????????????????????;???????????????????????? | | ?????????????????????????????????????????????????? | | ?????????????????????????????????????????????????? | | ?????????????????????????????????????????????????? | | ?????????????????????????????????????????????????? | | ?????????????????????????????????????????????????? | | ?????????????????????????????????????????????????? | | ?????????????????????????????????????????????????? | | ?????????????????????????????????????????????????? | | ?????????????????????????????????????????????????? | +----------------------------------------------------+ Best States ------------- Heat Dissipation 74 Energy Generation 73 Energy Capacity 420 Matter Stores 300 Matter Capacity 300 Sight Range 16 Robot Scan Range 20 Terrain Scan Range 16 Terrain Scan Density 10 ECM Strength 3 Jamming Range 12 Power Amplification 40 Armor Coverage 1200 Resistance: KI 30 Resistance: TH 25 Propulsion Shielding 90 Reclamation Efficiency 20 Weapon Cycling 15 Melee Speed Boost 50 Phase Shifting 10 Evasion (%) 80 Targeting Accuracy 14 Armor Integrity Analysis 40 Recoil Reduction 2 Kinecelleration 30 Offensive Hacking 42 Defensive Hacking 39 Item Schematics ----------------- Adv. Reaction Control System | -3/Research | Hacked Cmb. Antigrav System | -3/Quarantine | Scanalyzed Robot Schematics ------------------ None Fabricated ------------ Adv. Hacking Suite | x1 | -7/Factory Adv. Hacking Suite | x1 | -7/Factory Adv. Hacking Suite | x1 | -7/Factory Adv. Hacking Suite | x1 | -5/Factory Adv. Hacking Suite | x1 | -4/Factory Adv. Hacking Suite | x1 | -4/Factory Adv. Hacking Suite | x1 | -4/Factory Cmb. Antigrav System | x2 | -4/Armory Cmb. Antigrav System | x2 | -4/Armory Alien Tech Used ----------------- Core Expander Integrated Reactor Transdimensional Reconstructor Core Reset Matrix Integrated Mediator Core Cannon Achievements -------------- None Challenges ------------ None Game ------ Seed RocketThiefMultirail Manual? 0 Play Time 03:53:31 Cumulative 289.9 hours Start 2021.07.24 @ 04:21:33 End 2021.07.24 @ 09:31:17 Sessions 1 Manual Loads 0 Difficulty Rogue Special Mode None Game No. 158 Rogue 158 Adventurer 0 Explorer 0 Win Type - Total 8 Types 6/0/1/1/0/0/0/0/0 Lore% 78 Gallery% 83 Achievement% 63 Wizard Run 0 Options --------- ASCII 0 Keyboard 0 Movement Numpad Keybinds 0 Fullscreen 1 Font 18/SmallcapsGlow Map View 76x50 Tactical HUD 1 Map Filters NONE Filters NONE Steam 1 RUN: 3a926dd1-0f3a-433c-89a2-b658754ecd7a